fUST/lending_fUST_20240628
["ID","MTS","AMOUNT","RATE_DAILY","PERIOD"]
[330517279,1719555039768,-500.0,0.00038356,30]
[330517281,1719555039778,-518.75179711,0.00038356,30]
[330517282,1719555039787,-1037.58,0.00038356,30]
[330517283,1719555039798,-501.19477679,0.00038356,30]
[330517284,1719555039808,-500.0,0.00038356,30]
[330517285,1719555039818,-539.14385711,0.00038356,30]
[330517286,1719555039827,-1567.58,0.00038356,30]
[330517287,1719555039838,-500.0,0.00038356,30]
[330517288,1719555039848,-571.21,0.00038356,30]
[330517289,1719555039857,-851.01,0.00038356,30]
[330517290,1719555039866,-500.0,0.00038356,30]
[330517291,1719555039876,-500.0,0.00038356,30]
[330517292,1719555039886,-996.61,0.00038356,30]
[330517293,1719555039896,-1800.45,0.00038356,30]
[330517294,1719555039906,-983.87,0.00038356,30]
[330517295,1719555039918,-500.0,0.00038356,2]
[330517296,1719555039933,-500.0,0.00038356,30]
[330517297,1719555039943,-500.0,0.00038356,30]
[330517298,1719555039956,-500.0,0.00038356,30]
[330517299,1719555039968,-500.0,0.00038356,30]
[330517300,1719555039977,-500.0,0.00038356,30]
[330517301,1719555039986,-500.0,0.00038356,28]
[330517302,1719555039996,-500.0,0.00038356,30]
[330517303,1719555040006,-500.0,0.00038356,30]
[330517304,1719555040016,-500.0,0.00038356,30]
[330517305,1719555040026,-643.13,0.00038356,30]
[330517306,1719555040036,-732.06,0.00038356,30]
[330517307,1719555040046,-556.2,0.00038356,30]
[330517308,1719555040056,-1088.02,0.00038356,30]
[330517309,1719555040065,-500.0,0.00038356,30]
[330517310,1719555040076,-500.0,0.00038356,30]
[330517311,1719555040086,-635.83,0.00038356,30]
[330517312,1719555040097,-500.0,0.00038356,30]
[330517313,1719555040106,-500.0,0.00038356,30]
[330517314,1719555040116,-500.0,0.00038356,30]
[330517315,1719555040126,-500.0,0.00038356,30]
[330517316,1719555040137,-2407.15,0.00038356,30]
[330517317,1719555040148,-500.0,0.00038356,30]
[330517318,1719555040157,-1268.17,0.00038356,30]
[330517319,1719555040167,-375.78954573,0.00038356,30]
[330517320,1719555040177,-500.0,0.00038356,30]
[330517321,1719555040187,-500.0,0.00038356,30]
[330517322,1719555040198,-500.0,0.00038356,30]
[330517323,1719555040207,-500.0,0.00038356,30]
[330517324,1719555040217,-506.63399173,0.00038356,30]
[330517325,1719555040227,-393.25841208,0.00038356,30]
[330517326,1719555040236,-500.0,0.00038356,30]
[330517327,1719555040246,-500.0,0.00038356,30]
[330517328,1719555040256,-500.0,0.00038356,30]
[330517329,1719555040266,-500.0,0.00038356,30]
[330517330,1719555040275,-457.09553457,0.00038356,30]
[330517331,1719555040285,-500.0,0.00038356,20]
[330517332,1719555040294,-810.87,0.00038356,30]
[330517333,1719555040304,-500.0,0.00038356,30]
[330517334,1719555040313,-500.0,0.00038356,30]
[330517335,1719555040323,-500.0,0.00038356,30]
[330517336,1719555040332,-500.0,0.00038356,30]
[330517337,1719555040342,-500.0,0.00038356,30]
[330517338,1719555040352,-741.45,0.00038356,30]
[330517339,1719555040361,-500.0,0.00038356,30]
[330517340,1719555040371,-500.0,0.00038356,30]
[330517341,1719555040381,-980.7,0.00038356,30]
[330517342,1719555040390,-500.0,0.00038356,30]
[330517343,1719555040399,-500.0,0.00038356,30]
[330517344,1719555040408,-500.0,0.00038356,30]
[330517345,1719555040418,-500.0,0.00038356,2]
[330517346,1719555040427,-501.59816912,0.00038356,30]
[330517347,1719555040437,-500.0,0.00038356,30]
[330517348,1719555040448,-500.0,0.00038356,30]
[330517349,1719555040457,-804.87,0.00038356,2]
[330517350,1719555040466,-500.0,0.00038356,30]
[330517351,1719555040476,-500.0,0.00038356,30]
[330517352,1719555040486,-500.0,0.00038356,30]
[330517353,1719555040495,-500.0,0.00038356,30]
[330517354,1719555040505,-500.0,0.00038356,30]
[330517355,1719555040514,-500.0,0.00038356,2]
[330517356,1719555040523,-500.0,0.00038356,30]
[330517358,1719555040533,-542.42,0.00038356,30]
[330517359,1719555040543,-500.0,0.00038356,30]
[330517360,1719555040552,-500.0,0.00038356,30]
[330517362,1719555040563,-673.71,0.00038356,30]
[330517363,1719555040573,-500.0,0.00038356,30]
[330517364,1719555040583,-500.0,0.00038356,30]
[330517366,1719555040593,-526.21392055,0.00038356,30]
[330517367,1719555040603,-519.82428535,0.00038356,30]
[330517368,1719555040612,-542.53,0.00038356,30]
[330517369,1719555040623,-824.52,0.00038356,30]
[330517370,1719555040633,-1382.43,0.00038356,30]
[330517371,1719555040643,-546.78,0.00038356,30]
[330517372,1719555040653,-564.73,0.00038356,30]
[330517373,1719555040662,-508.08962021,0.00038356,2]
[330517374,1719555040672,-890.08,0.00038356,30]
[330517375,1719555040682,-564.0132966,0.00038356,30]
[330517376,1719555040692,-155.685177,0.00038356,7]
[330517377,1719555040702,-500.0,0.00038356,30]
[330517378,1719555040712,-500.0,0.00038356,30]
[330517379,1719555040722,-500.0,0.00038356,30]
[330517380,1719555040732,-500.0,0.00038356,30]
[330517381,1719555040742,-509.53,0.00038356,30]
[330517382,1719555040752,-660.63,0.00038356,30]
[330517383,1719555040762,-500.0,0.00038356,30]
[330517384,1719555040772,-500.0,0.00038356,30]
[330517385,1719555040782,-500.0,0.00038356,30]
[330517386,1719555040791,-881.64,0.00038356,30]
[330517387,1719555040800,-730.41,0.00038356,30]
[330517388,1719555040810,-500.0,0.00038356,30]
[330517389,1719555040819,-500.0,0.00038356,30]
[330517390,1719555040829,-500.0,0.00038356,30]
[330517391,1719555040838,-500.0,0.00038356,30]
[330517392,1719555040848,-366.13775044,0.00038356,30]
[330517393,1719555040859,-1552.53,0.00038356,30]
[330517394,1719555040868,-500.0,0.00038356,30]
[330517395,1719555040878,-553.69866463,0.00038356,25]
[330517396,1719555040887,-657.85,0.00038356,30]
[330517397,1719555040896,-3354.86,0.00038356,30]
[330517398,1719555040905,-500.0,0.00038356,30]
[330517399,1719555040916,-500.0,0.00038356,30]
[330517400,1719555040929,-500.0,0.00038356,30]
[330517401,1719555040938,-581.35,0.00038356,30]
[330517403,1719555040948,-543.06,0.00038356,30]
[330517405,1719555040959,-549.73,0.00038356,30]
[330517407,1719555040969,-500.0,0.00038356,30]
[330517409,1719555040979,-500.0,0.00038356,30]
[330517410,1719555040988,-824.21,0.00038356,30]
[330517412,1719555040999,-500.0,0.00038356,30]
[330517413,1719555041008,-640.31,0.00038356,30]
[330517414,1719555041017,-518.24290427,0.00038356,30]
[330517415,1719555041026,-500.0,0.00038356,30]
[330517417,1719555041036,-500.0,0.00038356,30]
[330517418,1719555041045,-500.0,0.00038356,30]
[330517420,1719555041055,-789.65,0.00038356,30]
[330517422,1719555041065,-500.0,0.00038356,30]
[330517424,1719555041075,-617.5,0.00038356,30]
[330517426,1719555041084,-1165.83,0.00038356,30]
[330517428,1719555041094,-500.0,0.00038356,30]
[330517429,1719555041103,-500.0,0.00038356,30]
[330517430,1719555041112,-500.0,0.00038356,30]
[330517431,1719555041121,-762.75,0.00038356,30]
[330517432,1719555041131,-500.0,0.00038356,30]
[330517433,1719555041140,-595.76267084,0.00038356,30]
[330517434,1719555041149,-8098.73,0.00038356,30]
[330517435,1719555041159,-603.77298186,0.00038356,30]
[330517436,1719555041168,-500.0,0.00038356,30]
[330517437,1719555041178,-500.0,0.00038356,30]
[330517438,1719555041187,-553.36,0.00038356,30]
[330517439,1719555041198,-500.0,0.00038356,30]
[330517441,1719555041206,-500.0,0.00038356,30]
[330517442,1719555041216,-2068.46,0.00038356,30]
[330517444,1719555041226,-500.0,0.00038356,30]
[330517446,1719555041235,-500.0,0.00038356,30]
[330517447,1719555041245,-500.0,0.00038356,30]
[330517448,1719555041254,-500.0,0.00038356,30]
[330517449,1719555041263,-996.91,0.00038356,30]
[330517450,1719555041272,-3496.11,0.00038356,30]
[330517451,1719555041282,-819.6,0.00038356,30]
[330517452,1719555041291,-500.0,0.00038356,30]
[330517453,1719555041300,-990.73,0.00038356,30]
[330517454,1719555041310,-500.0,0.00038356,30]
[330517455,1719555041318,-764.05,0.00038356,30]
[330517456,1719555041327,-290.33322296,0.00038356,30]
[330517457,1719555041336,-500.0,0.00038356,30]
[330517459,1719555041346,-500.0,0.00038356,2]
[330517460,1719555041355,-771.4,0.00038356,30]
[330517462,1719555041364,-500.0,0.00038356,30]
[330517464,1719555041373,-500.0,0.00038356,30]
[330517466,1719555041383,-500.0,0.00038356,30]
[330517468,1719555041392,-734.77,0.00038356,30]
[330517469,1719555041402,-1072.34,0.00038356,30]
[330517471,1719555041411,-500.0,0.00038356,30]
[330517473,1719555041420,-500.0,0.00038356,30]
[330517475,1719555041430,-259.46,0.00038356,30]
[330517476,1719555041439,-523.81,0.00038356,30]
[330517477,1719555041450,-151.0,0.00038356,7]
[330517478,1719555041459,-151.0,0.00038356,7]
[330517479,1719555041469,-151.0,0.00038356,7]
[330517480,1719555041479,-151.0,0.00038356,7]
[330517481,1719555041488,-239.76215856,0.00038356,7]
[330517482,1719555041498,-818.48,0.00038356,30]
[330517483,1719555041507,-500.0,0.00038356,30]
[330517484,1719555041516,-500.0,0.00038356,14]
[330517485,1719555041525,-1869.75,0.00038356,30]
[330517486,1719555041535,-500.0,0.00038356,30]
[330517487,1719555041545,-500.0,0.00038356,30]
[330517488,1719555041555,-500.0,0.00038356,30]
[330517489,1719555041564,-500.0,0.00038356,30]
[330517490,1719555041573,-500.0,0.00038356,30]
[330517491,1719555041582,-500.0,0.00038356,30]
[330517492,1719555041591,-516.49,0.00038356,30]
[330517493,1719555041601,-500.0,0.00038356,30]
[330517494,1719555041611,-500.0,0.00038356,30]
[330517495,1719555041619,-662.7,0.00038356,30]
[330517496,1719555041628,-500.0,0.00038356,30]
[330517497,1719555041637,-500.0,0.00038356,30]
[330517498,1719555041645,-500.0,0.00038356,30]
[330517499,1719555041654,-500.0,0.00038356,30]
[330517500,1719555041663,-500.0,0.00038356,30]
[330517501,1719555041672,-500.0,0.00038356,30]
[330517502,1719555041681,-534.93202726,0.00038356,30]
[330517503,1719555041690,-1158.02,0.00038356,30]
[330517504,1719555041700,-500.0,0.00038356,30]
[330517505,1719555041710,-917.58,0.00038356,30]
[330517506,1719555041719,-15586.37,0.00038356,30]
[330517507,1719555041727,-15586.37,0.00038356,30]
[330517508,1719555041739,-15586.37,0.00038356,30]
[330517509,1719555041748,-15586.37,0.00038356,30]
[330517510,1719555041758,-500.0,0.00038356,30]
[330517511,1719555041767,-15586.37,0.00038356,30]
[330517512,1719555041777,-500.0,0.00038356,30]
[330517513,1719555041786,-1764.28,0.00038356,30]
[330517514,1719555041796,-15586.37,0.00038356,30]
[330517515,1719555041805,-10921.09,0.00038356,30]
[330517516,1719555041815,-15586.37,0.00038356,30]
[330517517,1719555041824,-15586.37,0.00038356,30]
[330517518,1719555041833,-537.36494289,0.00038356,30]
[330517519,1719555041843,-15586.37,0.00038356,30]
[330517520,1719555041852,-15586.37,0.00038356,30]
[330517521,1719555041862,-15586.37,0.00038356,30]
[330517522,1719555041871,-616.16,0.00038356,30]
[330517523,1719555041881,-15586.37,0.00038356,30]
[330517524,1719555041890,-15586.37,0.00038356,30]
[330517525,1719555041899,-15586.37,0.00038356,30]
[330517526,1719555041909,-500.0,0.00038356,30]
[330517527,1719555042015,-15586.37,0.00038356,30]
[330517528,1719555042039,-15586.37,0.00038356,30]
[330517529,1719555042048,-15586.37,0.00038356,30]
[330517530,1719555042058,-500.0,0.00038356,30]
[330517531,1719555042067,-5142.44457989,0.00038356,30]
[330517533,1719555042325,-950.46324052,0.00038356,30]
[330517534,1719555042441,-402.852,0.00038356,30]
[330517571,1719555043345,-1005.39825024,0.00038356,30]
[330517707,1719555957637,-165.979049,0.00021096,2]
[330517708,1719555957658,-2600.42124511,0.000265,2]
[330517710,1719556056113,-24.41177889,0.000265,2]
[330517711,1719556056134,-2127.22775548,0.000265,2]
[330517714,1719556162488,-183.2057117,0.000243,2]
[330517715,1719556162507,-15.2029175,0.000244,2]
[330517716,1719556169969,-134.7970825,0.000244,2]
[330517718,1719556187932,-775.5102439,0.000265,2]
[330517798,1719556238610,-657.00848136,0.000265,2]
[330517799,1719556238623,-209.44179877,0.000265,2]
[330517800,1719556238634,-58.47370123,0.00027206,2]
[330517801,1719556238830,-170.91244577,0.00027206,2]
[330517803,1719556238852,-237.7961625,0.00027293,2]
[330517805,1719556238874,-1100.0309459,0.00028111,2]
[330517807,1719556238894,-152.34601979,0.00028843,2]
[330517808,1719556238915,-449.56400235,0.0002906,2]
[330517810,1719556238937,-1117.74863961,0.00029904,2]
[330517811,1719556238958,-400.0,0.00030126,2]
[330517812,1719556238979,-369.0,0.00030126,2]
[330517813,1719556239002,-24900.0,0.00030127,2]
[330517814,1719556239026,-152.3460198,0.00031082,7]
[330517815,1719556239048,-1770.0273583,0.00031693,2]
[330517816,1719556239072,-320.0,0.00033138,2]
[330517817,1719556239094,-2423.89000843,0.00034642,4]
[330517818,1719556239119,-2371.17089394,0.00034672,4]
[330517819,1719556239142,-276.99517364,0.00034999,4]
[330517820,1719556239164,-5880.04297122,0.00035,15]
[330517821,1719556239184,-403.4223674,0.00035259,4]
[330517822,1719556239206,-1595.68332182,0.00035615,14]
[330517823,1719556239227,-269.54035661,0.00036239,4]
[330517824,1719556239248,-2003.15165552,0.0003701,4]
[330517826,1719556239270,-490.54850109,0.00037085,2]
[330517828,1719556239291,-449.47063521,0.00037807,2]
[330517830,1719556239313,-155.30237999,0.00037807,4]
[330517832,1719556239336,-355.46178493,0.00037807,4]
[330517833,1719556239357,-200.376697,0.00037808,2]
[330517835,1719556239380,-723.78639686,0.00037999,4]
[330517837,1719556239402,-191.18583394,0.00037999,4]
[330517839,1719556239423,-1000.0,0.00038,30]
[330517841,1719556239446,-423.96490432,0.00038,2]
[330517843,1719556239467,-155.00138827,0.00038229,4]
[330517845,1719556239497,-2000.0,0.00038256,2]
[330517847,1719556239524,-9332.86103178,0.00038346,4]
[330517849,1719556239535,-259.42,0.00038346,3]
[330517851,1719556239546,-405.04,0.00038346,3]
[330517853,1719556239557,-337.53,0.00038346,3]
[330517855,1719556239567,-12952.41275737,0.00038356,7]
[330517857,1719556239577,-1189.13344373,0.00038356,7]
[330517859,1719556239587,-500.0,0.00038356,30]
[330517861,1719556239597,-500.0,0.00038356,30]
[330517863,1719556239608,-500.0,0.00038356,30]
[330517865,1719556239618,-500.0,0.00038356,30]
[330517867,1719556239629,-500.0,0.00038356,30]
[330517869,1719556239640,-500.0,0.00038356,30]
[330517871,1719556239651,-500.0,0.00038356,30]
[330517873,1719556239661,-500.0,0.00038356,30]
[330517875,1719556239671,-500.0,0.00038356,30]
[330517877,1719556239681,-790.16,0.00038356,30]
[330517879,1719556239690,-500.0,0.00038356,30]
[330517881,1719556239700,-500.0,0.00038356,30]
[330517883,1719556239710,-500.0,0.00038356,30]
[330517885,1719556239719,-577.54,0.00038356,30]
[330517887,1719556239729,-753.73,0.00038356,30]
[330517888,1719556239738,-500.0,0.00038356,30]
[330517890,1719556239747,-500.0,0.00038356,2]
[330517892,1719556239757,-500.0,0.00038356,30]
[330517894,1719556239767,-500.0,0.00038356,30]
[330517896,1719556239776,-529.28,0.00038356,30]
[330517898,1719556239786,-748.11,0.00038356,30]
[330517899,1719556239795,-500.12892507,0.00038356,30]
[330517900,1719556239804,-500.0,0.00038356,30]
[330517901,1719556239814,-581.32,0.00038356,30]
[330517902,1719556239824,-500.0,0.00038356,30]
[330517903,1719556239834,-500.0,0.00038356,30]
[330517904,1719556239843,-498.20327389,0.00038356,30]
[330517905,1719556239853,-1215.33,0.00038356,30]
[330517906,1719556239862,-500.0,0.00038356,30]
[330517907,1719556239872,-500.0,0.00038356,30]
[330517908,1719556239881,-500.0,0.00038356,30]
[330517909,1719556239891,-500.0,0.00038356,30]
[330517910,1719556239901,-500.0,0.00038356,30]
[330517911,1719556239910,-500.0,0.00038356,30]
[330517912,1719556239920,-701.56,0.00038356,30]
[330517913,1719556239930,-500.0,0.00038356,30]
[330517914,1719556239940,-549.97,0.00038356,30]
[330517915,1719556239950,-500.0,0.00038356,30]
[330517917,1719556239960,-500.0,0.00038356,30]
[330517918,1719556239970,-710.55,0.00038356,30]
[330517919,1719556239980,-468.12852912,0.00038356,30]
[330517920,1719556239990,-500.0,0.00038356,30]
[330517921,1719556239999,-547.41,0.00038356,30]
[330517922,1719556240009,-500.0,0.00038356,30]
[330517923,1719556240019,-500.0,0.00038356,30]
[330517924,1719556240029,-500.0,0.00038356,30]
[330517925,1719556240039,-500.0,0.00038356,30]
[330517926,1719556240050,-500.0,0.00038356,30]
[330517927,1719556240059,-500.0,0.00038356,20]
[330517928,1719556240069,-500.0,0.00038356,30]
[330517929,1719556240078,-500.0,0.00038356,30]
[330517930,1719556240088,-500.0,0.00038356,30]
[330517932,1719556240098,-500.0,0.00038356,30]
[330517933,1719556240108,-598.39955355,0.00038356,30]
[330517934,1719556240118,-500.0,0.00038356,30]
[330517935,1719556240128,-500.0,0.00038356,30]
[330517936,1719556240137,-1324.83,0.00038356,30]
[330517937,1719556240148,-500.0,0.00038356,30]
[330517938,1719556240157,-771.34,0.00038356,2]
[330517939,1719556240167,-500.0,0.00038356,30]
[330517940,1719556240176,-500.0,0.00038356,30]
[330517941,1719556240186,-500.0,0.00038356,30]
[330517942,1719556240196,-519.82,0.00038356,30]
[330517943,1719556240206,-500.0,0.00038356,30]
[330517944,1719556240216,-250.0,0.00038356,30]
[330517945,1719556240228,-500.0,0.00038356,30]
[330517946,1719556240239,-515.22794539,0.00038356,30]
[330517947,1719556240367,-500.0,0.00038356,30]
[330517948,1719556240381,-1725.43,0.00038356,30]
[330517949,1719556240392,-500.0,0.00038356,30]
[330517950,1719556240402,-590.96868933,0.00038356,30]
[330517951,1719556240413,-844.91,0.00038356,30]
[330517952,1719556240423,-500.0,0.00038356,30]
[330517953,1719556240434,-500.0,0.00038356,30]
[330517954,1719556240443,-500.0,0.00038356,30]
[330517955,1719556240454,-541.2,0.00038356,30]
[330517956,1719556240464,-500.0,0.00038356,30]
[330517957,1719556240475,-500.0,0.00038356,30]
[330517958,1719556240485,-500.0,0.00038356,30]
[330517959,1719556240496,-500.0,0.00038356,30]
[330517960,1719556240507,-426.11239832,0.00038356,30]
[330517961,1719556240517,-500.0,0.00038356,30]
[330517962,1719556240527,-500.0,0.00038356,30]
[330517963,1719556240537,-500.0,0.00038356,30]
[330517964,1719556240548,-500.0,0.00038356,30]
[330517965,1719556240558,-24458.79,0.00038356,30]
[330517966,1719556240568,-557.13,0.00038356,30]
[330517967,1719556240579,-500.0,0.00038356,30]
[330517968,1719556240589,-500.0,0.00038356,30]
[330517969,1719556240599,-500.0,0.00038356,30]
[330517970,1719556240610,-1027.66,0.00038356,30]
[330517971,1719556240621,-1795.49,0.00038356,30]
[330517972,1719556240632,-500.0,0.00038356,30]
[330517973,1719556240642,-500.0,0.00038356,30]
[330517974,1719556240652,-500.0,0.00038356,30]
[330517975,1719556240662,-955.38,0.00038356,30]
[330517976,1719556240673,-500.0,0.00038356,30]
[330517977,1719556240684,-500.0,0.00038356,30]
[330517978,1719556240695,-500.0,0.00038356,30]
[330517979,1719556240705,-500.0,0.00038356,30]
[330517980,1719556240715,-500.0,0.00038356,2]
[330517981,1719556240726,-523.31435894,0.00038356,30]
[330517982,1719556240736,-500.0,0.00038356,30]
[330517983,1719556240746,-784.38,0.00038356,30]
[330517984,1719556240756,-1507.94,0.00038356,30]
[330517985,1719556240767,-500.0,0.00038356,30]
[330517986,1719556240776,-500.0,0.00038356,30]
[330517987,1719556240787,-500.0,0.00038356,30]
[330517988,1719556240797,-500.0,0.00038356,30]
[330517989,1719556240807,-500.0,0.00038356,30]
[330517990,1719556240818,-500.0,0.00038356,30]
[330517991,1719556240828,-635.09,0.00038356,30]
[330517992,1719556240838,-500.0,0.00038356,2]
[330517993,1719556240849,-879.35,0.00038356,30]
[330517994,1719556240859,-487.43673657,0.00038356,30]
[330517995,1719556240869,-881.77,0.00038356,30]
[330517996,1719556240880,-500.0,0.00038356,30]
[330517997,1719556240890,-500.0,0.00038356,30]
[330517998,1719556240901,-500.0,0.00038356,30]
[330517999,1719556240911,-503.39612278,0.00038356,30]
[330518000,1719556240922,-500.0,0.00038356,30]
[330518001,1719556240932,-500.0,0.00038356,30]
[330518002,1719556240942,-518.37611023,0.00038356,30]
[330518003,1719556240953,-500.0,0.00038356,30]
[330518004,1719556240963,-1109.77,0.00038356,30]
[330518005,1719556240973,-1711.32,0.00038356,30]
[330518006,1719556240984,-500.0,0.00038356,30]
[330518007,1719556240994,-500.0,0.00038356,30]
[330518008,1719556241004,-545.23080716,0.00038356,30]
[330518009,1719556241014,-500.0,0.00038356,30]
[330518010,1719556241024,-500.0,0.00038356,30]
[330518011,1719556241035,-500.0,0.00038356,30]
[330518012,1719556241046,-476.04262643,0.00038356,30]
[330518013,1719556241056,-1339.72,0.00038356,30]
[330518014,1719556241066,-500.0,0.00038356,30]
[330518015,1719556241075,-500.0,0.00038356,30]
[330518016,1719556241086,-500.0,0.00038356,30]
[330518017,1719556241095,-500.0,0.00038356,30]
[330518018,1719556241105,-572.67,0.00038356,30]
[330518019,1719556241115,-500.0,0.00038356,30]
[330518021,1719556241125,-500.0,0.00038356,30]
[330518022,1719556241134,-500.0,0.00038356,30]
[330518023,1719556241144,-580.02861449,0.00038356,30]
[330518024,1719556241154,-500.0,0.00038356,30]
[330518025,1719556241163,-161.0972318,0.00038356,30]
[330518026,1719556241173,-730.97,0.00038356,30]
[330518028,1719556241182,-151.0,0.00038356,7]
[330518030,1719556241192,-151.0,0.00038356,7]
[330518032,1719556241202,-151.0,0.00038356,7]
[330518033,1719556241212,-500.0,0.00038356,30]
[330518034,1719556241224,-166.406082,0.00038356,7]
[330518035,1719556241233,-444.88018027,0.00038356,30]
[330518036,1719556241244,-500.0,0.00038356,30]
[330518037,1719556241254,-500.0,0.00038356,30]
[330518038,1719556241264,-500.0,0.00038356,30]
[330518039,1719556241274,-500.0,0.00038356,30]
[330518040,1719556241285,-812.97,0.00038356,30]
[330518041,1719556241300,-609.34,0.00038356,30]
[330518042,1719556241310,-500.0,0.00038356,30]
[330518043,1719556241320,-1502.26,0.00038356,30]
[330518044,1719556241331,-709.16,0.00038356,30]
[330518045,1719556241340,-500.0,0.00038356,30]
[330518046,1719556241349,-500.0,0.00038356,30]
[330518047,1719556241358,-1212.59,0.00038356,30]
[330518048,1719556241370,-500.0,0.00038356,28]
[330518049,1719556241379,-613.63,0.00038356,30]
[330518050,1719556241388,-500.0,0.00038356,30]
[330518051,1719556241397,-500.0,0.00038356,30]
[330518052,1719556241406,-994.35,0.00038356,30]
[330518053,1719556241416,-500.0,0.00038356,30]
[330518054,1719556241424,-500.0,0.00038356,30]
[330518055,1719556241434,-500.0,0.00038356,30]
[330518056,1719556241443,-500.0,0.00038356,30]
[330518057,1719556241452,-706.25,0.00038356,30]
[330518058,1719556241462,-955.08,0.00038356,30]
[330518059,1719556241471,-2306.85,0.00038356,30]
[330518060,1719556241481,-500.0,0.00038356,30]
[330518061,1719556241490,-500.0,0.00038356,30]
[330518062,1719556241499,-616.33,0.00038356,30]
[330518063,1719556241509,-678.8,0.00038356,30]
[330518064,1719556241518,-7761.28,0.00038356,30]
[330518065,1719556241527,-516.52853778,0.00038356,30]
[330518066,1719556241537,-500.0,0.00038356,30]
[330518067,1719556241546,-518.6,0.00038356,30]
[330518068,1719556241556,-500.0,0.00038356,30]
[330518069,1719556241566,-1566.4,0.00038356,30]
[330518070,1719556241575,-939.84,0.00038356,30]
[330518071,1719556241584,-533.02,0.00038356,30]
[330518072,1719556241593,-500.0,0.00038356,30]
[330518073,1719556241602,-2197.12,0.00038356,30]
[330518074,1719556241612,-500.0,0.00038356,30]
[330518075,1719556241621,-500.0,0.00038356,30]
[330518076,1719556241631,-500.0,0.00038356,30]
[330518077,1719556241641,-500.0,0.00038356,30]
[330518078,1719556241651,-500.0,0.00038356,30]
[330518079,1719556241660,-500.0,0.00038356,30]
[330518080,1719556241670,-500.0,0.00038356,30]
[330518081,1719556241679,-500.0,0.00038356,30]
[330518082,1719556241688,-732.22,0.00038356,30]
[330518083,1719556241698,-500.0,0.00038356,30]
[330518084,1719556241707,-500.0,0.00038356,30]
[330518085,1719556241717,-200.0,0.00038356,7]
[330518086,1719556241726,-777.08,0.00038356,30]
[330518087,1719556241736,-500.0,0.00038356,30]
[330518089,1719556241745,-500.0,0.00038356,30]
[330518091,1719556241754,-500.0,0.00038356,30]
[330518092,1719556241762,-500.0,0.00038356,30]
[330518094,1719556241772,-500.0,0.00038356,30]
[330518095,1719556241781,-500.0,0.00038356,30]
[330518097,1719556241792,-500.0,0.00038356,30]
[330518098,1719556241801,-500.0,0.00038356,30]
[330518100,1719556241810,-500.0,0.00038356,30]
[330518102,1719556241819,-500.0,0.00038356,30]
[330518103,1719556241828,-500.0,0.00038356,30]
[330518104,1719556241838,-500.0,0.00038356,2]
[330518105,1719556241847,-500.0,0.00038356,30]
[330518106,1719556241857,-500.0,0.00038356,30]
[330518107,1719556241866,-574.75,0.00038356,30]
[330518108,1719556241875,-500.0,0.00038356,30]
[330518109,1719556241885,-500.0,0.00038356,30]
[330518110,1719556241894,-500.0,0.00038356,30]
[330518111,1719556241903,-500.0,0.00038356,30]